bitfinex/quotes_SOLUSD_20241209
["timestamp","ask_amount","ask_price","bid_price","bid_amount"]
[1733734230984,20.8229407,227.87,227.72,24.20274743]
[1733734231954,20.8229407,227.87,227.72,0.42586343]
[1733734232151,20.8229407,227.87,227.7,23.776884]
[1733734232152,20.8229407,227.87,227.73,0.42589701]
[1733734232361,0.8229407,227.87,227.73,0.42589701]
[1733734233763,20.8229407,227.87,227.73,0.42589701]
[1733734235289,20.8229407,227.87,227.73,13.15642849]
[1733734235471,20.8229407,227.87,227.74,23.776884]
[1733734236039,20.8229407,227.87,227.71,0.42590413]
[1733734236175,20.8229407,227.87,227.69,0.42603458]
[1733734236484,20.8229407,227.87,227.68,0.42616468]
[1733734237370,20.0,227.83,227.67,0.42626073]
[1733734237668,0.82329528,227.82,227.67,0.42626073]
[1733734238490,0.82329528,227.82,227.68,0.42620535]
[1733734243491,1.5878,227.81,227.68,0.42620535]
[1733734243689,0.66041403,227.8,227.66,12.73053148]
[1733734243988,0.66041403,227.8,227.68,23.776884]
[1733734244196,0.66041403,227.8,227.69,0.58911949]
[1733734244377,20.0,227.76,227.65,0.5892101]
[1733734244570,0.66050682,227.75,227.63,12.73053148]
[1733734244775,20.0,227.76,227.64,0.58932796]
[1733734245588,0.66047702,227.75,227.65,23.776884]
[1733734245794,0.66047702,227.75,227.66,0.58931424]
[1733734246330,0.66047702,227.75,227.64,0.58938641]
[1733734246590,0.66047702,227.75,227.65,23.776884]
[1733734247489,0.66047702,227.75,227.66,23.776884]
[1733734247864,0.66047702,227.75,227.65,23.776884]
[1733734248073,0.66047702,227.75,227.67,23.776884]
[1733734248799,0.66044516,227.75,227.67,24.36610968]
[1733734248963,20.0,227.76,227.67,24.36610968]
[1733734249671,20.0,227.76,227.68,0.58917193]
[1733734249875,20.0,227.76,227.69,23.776884]
[1733734250080,20.0,227.71,227.6,0.58912399]
[1733734251104,20.0,227.71,227.58,0.58960021]
[1733734251266,20.0,227.71,227.61,0.58960021]
[1733734251465,20.0,227.71,227.62,23.776884]
[1733734251692,0.66063708,227.7,227.58,0.58960953]
[1733734252397,20.0,227.71,227.58,0.58960953]
[1733734252773,20.0,227.71,227.59,12.73053148]
[1733734252981,20.0,227.71,227.61,23.776884]
[1733734253300,20.0,227.71,227.63,23.776884]
[1733734253462,20.0,227.71,227.65,23.776884]
[1733734255665,0.66058371,227.7,227.6,0.58950521]
[1733734256086,0.66058371,227.7,227.55,9.66795819]
[1733734256087,0.66058371,227.7,227.57,0.58972241]
[1733734257199,0.66058371,227.7,227.58,0.58972588]
[1733734257365,0.66058371,227.7,227.59,23.776884]
[1733734257567,0.66058371,227.7,227.6,0.58972066]
[1733734257985,0.66058371,227.7,227.61,23.776884]
[1733734261020,0.66058371,227.7,227.57,23.776884]
[1733734261310,0.66058371,227.7,227.59,23.776884]
[1733734262325,0.66058371,227.7,227.6,23.776884]
[1733734263306,0.66058371,227.7,227.56,0.58973416]
[1733734263307,7.7213,227.69,227.56,0.58973416]
[1733734263513,20.0,227.66,227.55,9.66795819]
[1733734263714,0.66095159,227.65,227.56,0.59023855]
[1733734264224,0.66095159,227.65,227.55,9.66795819]
[1733734264430,20.0,227.61,227.55,9.66795819]
[1733734264625,0.66105637,227.6,227.55,9.66795819]
[1733734266325,0.66105637,227.6,227.41,12.73053148]
[1733734266326,20.0,227.49,227.32,0.5199605]
[1733734266516,0.66163696,227.48,227.35,0.59160929]
[1733734267026,20.66163696,227.48,227.32,0.5199605]
[1733734267326,1.5969,227.47,227.32,0.5199605]
[1733734267526,0.66180535,227.46,227.32,0.5199605]
[1733734268098,0.66180535,227.46,227.35,0.59179936]
[1733734268813,1.5969,227.47,227.35,0.59179936]
[1733734268997,1.5969,227.47,227.35,13.32233084]
[1733734269193,0.66143528,227.5,227.36,12.73053148]
[1733734269443,0.66143528,227.5,227.38,23.776884]
[1733734269728,0.66143549,227.51,227.4,23.776884]
[1733734269916,0.66143549,227.51,227.41,0.59106619]
[1733734270121,5.9309,227.52,227.41,0.59106619]
[1733734270632,5.9309,227.52,227.42,23.776884]
[1733734270932,0.66131856,227.51,227.38,0.59097249]
[1733734271621,20.0,227.49,227.39,23.776884]
[1733734271803,5.9309,227.52,227.41,23.776884]
[1733734272006,5.9309,227.52,227.43,23.776884]
[1733734272226,6.5202,227.58,227.45,23.776884]
[1733734272400,0.66118289,227.57,227.46,0.59070115]
[1733734272597,6.5202,227.58,227.47,23.776884]
[1733734272830,6.5202,227.58,227.48,0.59056864]
[1733734273050,0.66111944,227.57,227.48,0.59056864]
[1733734273328,0.66111944,227.57,227.46,0.59061446]
[1733734273636,0.66111944,227.57,227.42,0.59076798]
[1733734273930,0.66111944,227.57,227.4,1.6741]
[1733734273931,20.0,227.55,227.4,0.59102525]
[1733734274238,0.66139072,227.54,227.4,0.59102525]
[1733734275097,0.66139072,227.54,227.4,13.32155673]
[1733734275304,0.66128069,227.54,227.41,23.776884]
[1733734275602,0.66125193,227.54,227.43,23.776884]
[1733734275805,20.0,227.55,227.44,0.59083524]
[1733734276003,20.0,227.55,227.34,74.59076667]
[1733734276004,0.66123863,227.54,227.42,23.776884]
[1733734276243,0.66123863,227.54,227.38,0.5909908]
[1733734277111,0.66123863,227.54,227.34,74.59076667]
[1733734277112,20.0,227.42,227.34,72.91666667]
[1733734277313,0.66190482,227.41,227.34,72.91666667]
[1733734278243,5.0,227.35,227.22,0.26407]
[1733734278531,20.0,227.32,227.22,0.26407]
[1733734278724,0.66236864,227.31,227.22,0.26407]
[1733734279120,20.0,227.32,227.22,0.26407]
[1733734279435,20.0,227.3,227.22,0.26407]
[1733734279604,0.6624346,227.29,227.1,0.50148691]
[1733734279933,20.0,227.28,227.1,0.08246937]
[1733734280136,0.66258023,227.27,227.1,0.08246937]
[1733734280320,20.0,227.23,227.1,0.08246937]
[1733734280628,0.6628684,227.22,227.1,0.50206936]
[1733734280844,23.776884,227.39,227.13,20.4774196]
[1733734281048,20.0,227.36,227.14,0.50150045]
[1733734281222,0.66232418,227.35,227.09,0.5199605]
[1733734281428,20.0,227.31,227.09,0.5199605]
[1733734281635,20.0,227.26,227.09,0.5199605]
[1733734281832,0.66268368,227.25,227.09,0.5199605]
[1733734282354,0.66268368,227.25,227.01,0.03899181]
[1733734282355,20.0,227.17,227.01,0.03899181]
[1733734282647,0.6631217,227.16,227.01,0.03899181]
[1733734283159,23.776884,227.15,226.86,20.9973801]
[1733734283362,20.0,227.1,226.86,0.5199605]
[1733734283660,0.66324365,227.09,226.86,0.5199605]
[1733734283831,20.0,227.05,226.86,0.5199605]
[1733734284026,0.66346937,227.04,226.86,0.5199605]
[1733734285155,1.74247535,227.07,226.86,0.5199605]
[1733734285325,0.6634596,227.06,226.86,0.5199605]
[1733734285525,20.0,227.14,226.88,20.4774196]
[1733734285526,0.6634106,227.11,226.88,20.4774196]
[1733734285825,20.0,227.07,226.86,20.9973801]
[1733734286028,0.66334847,227.06,226.86,20.9973801]
[1733734286635,0.66334847,227.06,226.86,0.5199605]
[1733734286929,20.0,227.02,226.86,0.5199605]
[1733734287142,0.66343092,227.01,226.86,0.5199605]
[1733734287657,0.66343092,227.01,226.86,20.9973801]
[1733734287857,23.776884,227.1,226.86,20.9973801]
[1733734288163,20.0,227.07,226.86,20.9973801]
[1733734288367,0.66329447,227.06,226.86,20.9973801]
[1733734288553,0.66329447,227.06,226.88,20.4774196]
[1733734290349,0.66329447,227.06,226.86,0.5199605]
[1733734290350,0.66329447,227.06,226.9,20.4774196]
[1733734290548,0.6631287,227.22,226.9,20.4774196]
[1733734290764,3.88928076,227.21,226.92,20.4774196]
[1733734290942,0.66310916,227.2,226.92,20.4774196]
[1733734291344,3.88928076,227.19,226.9,20.4774196]
[1733734291545,0.66315565,227.18,226.91,93.39408627]
[1733734291757,0.66315565,227.18,226.91,57.91666667]
[1733734291943,3.88928076,227.17,226.91,57.91666667]
[1733734292148,23.776884,227.15,226.91,57.91666667]
[1733734292349,20.0,227.08,226.91,57.91666667]
[1733734292559,20.0,227.04,226.91,57.91666667]
[1733734292769,0.66339842,227.03,226.91,57.91666667]
[1733734293143,20.0,226.99,226.91,57.91666667]
[1733734293352,0.66355879,226.98,226.91,57.91666667]
[1733734293658,20.0,226.94,226.91,35.14408239]
[1733734293840,20.0,226.94,226.91,32.59563608]
[1733734293841,23.776884,226.92,226.91,32.59563608]
[1733734294040,23.776884,226.92,226.91,32.51444996]
[1733734294465,23.776884,226.92,226.91,32.12074996]
[1733734294843,0.66369362,226.93,226.91,28.73074996]
[1733734295042,0.66381539,226.92,226.91,13.26374997]
[1733734295341,23.776884,226.94,226.91,13.26374997]
[1733734295561,43.776884,226.91,226.86,0.5199605]
[1733734295778,23.776884,226.89,226.86,0.5199605]
[1733734295979,0.6640509,226.88,226.86,0.5199605]
[1733734296259,0.6640509,226.88,226.7,4.0]
[1733734296260,20.0,226.86,226.7,4.0]
[1733734296591,23.776884,226.84,226.7,4.0]
[1733734296762,0.66415037,226.83,226.7,4.0]
[1733734297687,0.66418867,226.82,226.7,4.0]
[1733734297868,23.776884,226.84,226.7,4.0]
[1733734298186,0.66419993,226.83,226.7,3.53952591]
[1733734298556,23.776884,226.82,226.7,3.53952591]
[1733734298755,0.66430439,226.81,226.7,3.53952591]
[1733734299057,20.0,226.86,226.7,3.53952591]
[1733734299058,0.66428125,226.85,226.7,3.53952591]
[1733734299873,0.66420237,226.84,226.7,3.53952591]
[1733734300070,0.66416552,226.9,226.7,3.53952591]
[1733734300596,0.66416552,226.9,226.71,23.776884]
[1733734301389,0.66416552,226.9,226.7,3.53952591]
[1733734301890,20.0,226.88,226.7,3.53952591]
[1733734302060,0.66409575,226.87,226.71,23.776884]
[1733734302765,0.66409575,226.87,226.71,23.276884]
[1733734303085,3.88928076,226.89,226.7,3.53952591]
[1733734303086,0.66393983,226.86,226.7,3.53952591]
[1733734304288,0.66431611,226.85,226.7,3.53952591]
[1733734304586,20.0,226.91,226.7,3.53952591]
[1733734304587,0.66421559,226.9,226.7,3.53952591]
[1733734304786,4.55349635,226.9,226.7,3.53952591]
[1733734305284,3.88928076,226.89,226.7,3.53952591]
[1733734305585,0.66413048,226.88,226.7,3.53952591]
[1733734305880,3.88928076,226.87,226.7,3.53952591]
[1733734306180,0.66419702,226.86,226.7,3.53952591]
[1733734306889,21.75533753,226.91,226.7,3.53952591]
[1733734306890,0.6642601,226.9,226.7,3.53952591]
[1733734307087,3.88928076,226.87,226.7,3.53952591]
[1733734307388,0.66417166,226.86,226.7,3.53952591]
[1733734307765,0.66393276,226.85,226.71,20.4774196]
[1733734308078,220.25218794,227.03,226.7,3.53952591]
[1733734308079,0.66386058,227.02,226.75,23.776884]
[1733734308497,18.30843458,227.02,226.78,20.4774196]
[1733734308670,0.66386058,227.02,226.83,44.2543036]
[1733734308874,0.66334988,227.06,226.87,8.0755]
[1733734309085,220.25218794,227.21,226.87,8.0755]
[1733734309086,17.635616,227.1,226.89,20.4774196]
[1733734309268,0.66309085,227.09,226.91,20.4774196]
[1733734309592,220.25218794,227.21,226.88,23.776884]
[1733734309593,0.66299273,227.08,226.88,23.776884]
[1733734309784,0.66325031,227.2,226.94,20.4774196]
[1733734309984,0.66325031,227.2,226.91,20.0]
[1733734309985,0.66325031,227.2,226.99,20.4774196]
[1733734310192,11.23876836,227.4,227.06,23.776884]
[1733734310193,1.81549684,227.27,227.06,23.776884]
[1733734310355,231.4909563,227.4,227.06,23.776884]
[1733734310356,0.66243375,227.26,227.1,23.776884]
[1733734310578,0.66234881,227.25,227.06,23.776884]
[1733734310778,0.66250286,227.32,227.06,44.2543036]
[1733734310958,0.66243834,227.39,227.07,20.4774196]
[1733734311195,0.66243834,227.39,227.09,23.776884]
[1733734311566,3.88928076,227.38,227.09,23.776884]
[1733734311766,0.66253084,227.37,227.05,1.6713]
[1733734311967,220.25218794,227.31,227.05,1.6713]
[1733734312182,0.66273288,227.3,227.05,1.6713]
[1733734312577,18.29069188,227.3,227.05,1.6713]
[1733734312888,0.66273288,227.3,227.11,20.4774196]
[1733734313085,220.25218794,227.5,227.17,20.4774196]
[1733734313285,3.88928076,227.44,227.18,0.50111293]
[1733734313493,0.82498511,227.42,227.18,0.50111293]
[1733734313666,3.88928076,227.41,227.15,0.50120989]
[1733734313862,0.82503903,227.4,227.15,0.50120989]
[1733734314099,0.82503903,227.4,227.16,23.776884]
[1733734314300,0.82503903,227.4,227.17,0.50088963]
[1733734314801,0.82493079,227.39,227.17,0.50088963]
[1733734315299,0.82493079,227.39,227.14,24.27810815]
[1733734315798,3.889281,227.42,227.14,24.27810815]
[1733734315799,0.8250945,227.38,227.14,24.27810815]
[1733734316891,0.825116,227.37,227.15,0.50137524]
[1733734317688,0.825116,227.37,227.1,0.50138071]
[1733734317998,30.0,227.18,227.1,0.50138071]
[1733734318585,30.0,227.18,227.05,1.6713]
[1733734319101,30.0,227.18,227.06,0.50184331]
[1733734320092,30.0,227.18,227.09,20.0]
[1733734320295,30.0,227.18,227.11,33.26520279]
[1733734320473,30.0,227.18,227.12,24.27825721]
[1733734320682,0.82513445,227.41,227.17,33.26520279]
[1733734321014,0.82513445,227.41,227.25,20.0]
[1733734321310,0.82465197,227.52,227.26,0.5004472]
[1733734321664,17.605248,227.49,227.26,0.5004472]
[1733734321872,0.82467063,227.48,227.26,0.5004472]
[1733734322289,0.82467063,227.48,227.26,33.76564999]
[1733734322495,0.82456635,227.58,227.26,0.5004472]
[1733734322712,0.82456635,227.58,227.26,33.76564999]
[1733734322877,6.1945,227.49,227.26,0.5004472]
[1733734323069,0.82461922,227.48,227.27,33.26520279]
[1733734323277,6.1945,227.54,227.3,33.26520279]
[1733734323580,0.82441127,227.53,227.31,33.76516858]
[1733734323772,0.82441127,227.53,227.34,33.26520279]
[1733734324103,0.82441127,227.53,227.36,33.26520279]
[1733734324404,1.6507,227.65,227.27,11.0001]
[1733734324405,0.8242151,227.58,227.38,33.26520279]
[1733734324570,0.8242151,227.58,227.39,0.49944841]
[1733734324940,0.82412434,227.64,227.41,33.26520279]
[1733734325090,0.82412434,227.64,227.42,57.54126619]
[1733734325598,0.82412434,227.64,227.44,33.26520279]
[1733734325821,0.5199605,227.66,227.51,33.26520279]
[1733734326118,0.5199605,227.66,227.53,33.26520279]
[1733734326303,0.5199605,227.66,227.54,0.49837825]
[1733734326483,0.5199605,227.66,227.49,0.49860128]
[1733734327023,0.5199605,227.66,227.39,10.994]
[1733734327024,0.82374795,227.78,227.35,34.95590279]
[1733734327318,0.3870645,227.66,227.43,33.26520279]
[1733734327494,0.3870645,227.66,227.44,0.49915197]
[1733734327698,0.3870645,227.66,227.5,33.26520279]
[1733734327902,0.3870645,227.66,227.49,33.26520279]
[1733734328202,0.3870645,227.66,227.44,33.76435476]
[1733734328393,0.3870645,227.66,227.49,33.26520279]
[1733734328721,0.3870645,227.66,227.4,39.30720279]
[1733734328887,0.3870645,227.66,227.41,33.26520279]
[1733734329085,0.3870645,227.66,227.42,0.49922127]
[1733734329292,0.3870645,227.66,227.45,33.26520279]
[1733734329494,0.3870645,227.66,227.46,0.49890811]
[1733734329690,0.3870645,227.66,227.52,33.26520279]
[1733734329989,0.3870645,227.66,227.41,10.9933]
[1733734329990,0.3870645,227.66,227.53,0.49850319]
[1733734330200,0.3870645,227.66,227.59,33.26520279]
[1733734330428,0.3870645,227.66,227.53,0.49850319]
[1733734330429,0.3870645,227.66,227.6,33.7631822]
[1733734330624,0.3870645,227.66,227.6,0.49797941]
[1733734330989,0.3870645,227.66,227.54,24.27480548]
[1733734331291,0.3870645,227.66,227.56,23.776884]
[1733734331517,0.3870645,227.66,227.58,33.26520279]
[1733734331695,0.3870645,227.66,227.59,0.49803885]
[1733734331895,0.3870645,227.66,227.54,0.49806204]
[1733734332899,0.3870645,227.66,227.48,0.49858718]
[1733734333220,0.3870645,227.66,227.42,33.26520279]
[1733734333444,0.3870645,227.66,227.46,33.26520279]
[1733734333649,0.3870645,227.66,227.53,33.26520279]
[1733734333808,0.3870645,227.66,227.42,10.9928]
[1733734333809,0.3870645,227.66,227.54,0.49839048]
[1733734334208,0.3870645,227.66,227.58,33.26520279]
[1733734334534,0.3870645,227.66,227.61,33.26520279]
[1733734334709,0.3870645,227.66,227.62,0.49791656]
[1733734335412,0.3870645,227.66,227.52,6.56936052]
[1733734335847,0.3870645,227.66,227.52,6.0715]
[1733734336052,0.3870645,227.66,227.47,0.49874282]
[1733734336247,0.3870645,227.66,227.45,2.0231]
[1733734336723,0.82406669,227.65,227.36,33.26520279]
[1733734336918,0.82406669,227.65,227.34,2.49933153]
[1733734337224,0.82406669,227.65,227.33,39.70710279]
[1733734337225,0.82406669,227.65,227.33,6.4419]
[1733734337423,0.82406669,227.65,227.35,33.26520279]
[1733734337730,20.0,227.61,227.37,33.26520279]
[1733734337916,0.82425474,227.6,227.33,6.4419]
[1733734338125,0.82425474,227.6,227.34,33.76522002]
[1733734338319,0.82425474,227.6,227.36,33.26520279]
[1733734338532,0.82425474,227.6,227.33,6.4419]
[1733734338533,0.82425474,227.6,227.37,0.4995088]
[1733734338716,0.82425474,227.6,227.33,6.4419]
[1733734339050,0.82425474,227.6,227.33,6.94174603]
[1733734339251,0.82425474,227.6,227.33,40.20694882]
[1733734339413,0.82425474,227.6,227.33,6.94174603]
[1733734340658,0.82425474,227.6,227.33,40.20694882]
[1733734340851,0.82425474,227.6,227.37,33.26520279]
[1733734341055,0.824151,227.59,227.39,33.26520279]
[1733734341350,0.82414538,227.63,227.4,33.76463681]
[1733734341650,0.82414538,227.63,227.45,33.26520279]
[1733734341847,0.82414538,227.63,227.46,0.49898627]
[1733734342351,0.82403228,227.62,227.46,0.49898627]
[1733734343424,0.8240264,227.61,227.47,0.49919605]
[1733734343857,0.8240264,227.61,227.42,33.26520279]
[1733734343858,0.8240264,227.61,227.43,0.49898107]
[1733734344156,0.8240264,227.61,227.43,20.49898107]
[1733734344314,0.8240264,227.61,227.43,0.49898107]
[1733734344641,0.3870645,227.63,227.42,33.26520279]
[1733734344642,0.82415603,227.6,227.42,33.26520279]
[1733734344839,0.82415603,227.6,227.43,0.4992439]
[1733734345152,0.82403807,227.62,227.46,33.26520279]
[1733734345465,1.21110257,227.63,227.47,33.76399117]
[1733734345618,0.3870645,227.63,227.47,33.76399117]
[1733734345825,0.3870645,227.63,227.52,33.26520279]
[1733734346159,0.3870645,227.63,227.48,23.776884]
[1733734346160,0.3870645,227.63,227.58,33.26520279]
[1733734346355,0.3870645,227.63,227.59,33.7631981]
[1733734346525,0.3870645,227.63,227.6,53.26520279]
[1733734346725,0.3870645,227.63,227.61,0.49784701]
[1733734347230,0.3870645,227.63,227.62,57.04208679]
[1733734348130,0.82306829,227.9,227.62,57.04208679]
[1733734348131,0.82306829,227.9,227.65,20.0]
[1733734348338,6.2648,227.89,227.66,20.49730471]
[1733734348543,0.82307547,227.88,227.68,20.0]
[1733734348894,0.82307547,227.88,227.69,0.49734288]
[1733734349168,20.0,227.86,227.62,20.0]
[1733734349369,0.82329239,227.82,227.63,20.49772804]
[1733734349543,0.82327423,227.85,227.68,33.26520279]
[1733734349878,0.82305036,227.82,227.61,0.49724398]
[1733734350180,0.82305036,227.82,227.64,0.49724398]
[1733734350337,0.82317193,227.88,227.68,33.26520279]
[1733734350536,0.82317193,227.88,227.69,0.49729594]
[1733734350739,0.82317193,227.88,227.65,0.49739126]
[1733734351146,0.82317193,227.88,227.65,33.76259405]
[1733734351366,0.82317193,227.88,227.65,0.49739126]
[1733734351577,23.776884,227.81,227.6,0.49772991]
[1733734351737,20.0,227.74,227.54,0.49814413]
[1733734351936,0.82352774,227.73,227.54,0.49814413]
[1733734352133,0.82352774,227.73,227.53,6.0527]
[1733734352375,0.82352774,227.73,227.41,11.49114205]
[1733734352376,20.0,227.69,227.46,33.26520279]
[1733734352640,20.0,227.64,227.46,0.49875094]
[1733734352868,19.8,227.6,227.46,0.49875094]
[1733734353175,19.8,227.6,227.44,6.3045]
[1733734353176,20.0,227.57,227.38,33.26520279]
[1733734353340,20.0,227.57,227.4,33.26520279]
[1733734353538,20.0,227.57,227.37,6.0487]
[1733734353539,0.82400283,227.56,227.41,0.49914892]
[1733734353950,0.82400283,227.56,227.38,0.49954091]
[1733734354454,20.0,227.57,227.39,33.26520279]
[1733734354665,19.8,227.6,227.43,33.26520279]
[1733734354865,19.8,227.6,227.37,33.26520279]
[1733734354866,19.8,227.6,227.47,33.26520279]
[1733734355168,19.8,227.6,227.48,0.49876044]
[1733734355349,19.8,227.6,227.51,33.26520279]
[1733734355549,19.8,227.6,227.52,0.49848291]
[1733734355957,19.8,227.6,227.53,33.26520279]
[1733734356165,19.8,227.6,227.54,0.49820227]
[1733734356361,19.8,227.6,227.58,33.26520279]
[1733734356564,19.8,227.6,227.59,0.49796515]
[1733734359279,19.8,227.6,227.59,20.49796515]
[1733734359864,19.8,227.6,227.57,0.49803694]
[1733734361855,19.8,227.6,227.58,33.26520279]
[1733734362054,19.8,227.6,227.59,0.49804034]
[1733734362655,19.8,227.6,227.59,24.27492434]
[1733734362880,19.8,227.6,227.59,57.54012713]
[1733734363483,19.8,227.6,227.59,90.80532992]
[1733734363696,19.8,227.6,227.59,90.30728958]
[1733734363990,19.8,227.6,227.59,101.29188958]
[1733734363991,3.78947873,227.6,227.59,101.29188958]
[1733734364185,1.34503265,227.83,227.62,20.0]
[1733734364482,0.5216217,227.83,227.69,33.26520279]
[1733734364783,1.34465516,227.83,227.7,0.49721017]
[1733734365281,20.0,227.81,227.7,0.49721017]
[1733734366365,20.0,227.81,227.67,0.49725783]
[1733734366757,20.0,227.81,227.64,20.0]
[1733734366758,0.8231676,227.8,227.64,20.0]
[1733734366959,0.8231676,227.8,227.65,0.4975463]
[1733734367486,20.0,227.81,227.67,33.26520279]
[1733734367695,20.0,227.81,227.68,0.49732293]
[1733734367854,0.82308984,227.8,227.68,0.49732293]
[1733734368059,20.0,227.81,227.63,23.776884]
[1733734368253,20.0,227.81,227.64,0.49742123]
[1733734368471,0.82314382,227.8,227.64,0.49742123]
[1733734369181,20.0,227.81,227.64,0.49742123]
[1733734369690,0.82316457,227.8,227.64,0.49742123]
[1733734370360,0.82316457,227.8,227.6,0.49771557]
[1733734370559,23.776884,227.79,227.6,0.49771557]
[1733734370790,20.0,227.76,227.54,0.60839484]
[1733734370986,0.82352876,227.75,227.54,0.4979634]
[1733734372662,20.0,227.71,227.54,0.4979634]
[1733734372864,20.0,227.66,227.48,0.49834874]
[1733734373087,20.82378376,227.65,227.48,0.49834874]
[1733734373670,0.82378376,227.65,227.48,0.49834874]
[1733734373975,0.82378376,227.65,227.47,0.4986105]
[1733734374965,20.0,227.66,227.47,57.54069729]
[1733734375163,20.0,227.66,227.52,33.26520279]
[1733734375391,20.0,227.66,227.53,0.49826186]
[1733734375960,6.1628,227.69,227.53,0.49826186]
[1733734376164,20.0,227.66,227.53,0.49826186]
[1733734376366,6.1628,227.69,227.54,33.26520279]
[1733734376664,6.1628,227.69,227.55,0.49810498]
[1733734379599,6.1628,227.69,227.56,23.776884]
[1733734379804,20.0,227.72,227.57,0.49791804]
[1733734381181,0.82346176,227.71,227.57,0.49791804]
[1733734381596,20.0,227.67,227.54,0.49828434]
[1733734382011,2.1538,227.74,227.63,20.0]
[1733734382311,2.1538,227.74,227.6,0.49755393]
[1733734382485,2.1538,227.74,227.64,0.49755393]
[1733734382806,8.2874,227.81,227.65,33.26520279]
[1733734382972,2.1931,227.81,227.67,57.04208679]
[1733734383167,2.1931,227.81,227.68,0.49711894]
[1733734384015,0.5216217,227.83,227.71,23.776884]
[1733734384172,0.5216217,227.83,227.78,23.776884]
[1733734384373,0.5216217,227.83,227.79,0.49648714]
[1733734384587,0.5216217,227.83,227.82,57.04208679]
[1733734384774,0.5216217,227.83,227.82,57.53807667]
[1733734384988,0.5216217,227.83,227.82,0.49598988]
[1733734385772,0.5216217,227.83,227.82,161.27287388]
[1733734385979,0.5216217,227.83,227.82,137.0]
[1733734386405,0.5216217,227.83,227.75,39.86390279]
[1733734386582,0.5216217,227.83,227.76,24.27336755]
[1733734386784,0.5216217,227.83,227.76,0.49648355]
[1733734386988,0.5216217,227.83,227.7,0.49678611]
[1733734387818,0.215712,227.83,227.7,0.49678611]
[1733734388274,0.215712,227.83,227.64,0.49724486]
[1733734388673,0.215712,227.83,227.68,33.26520279]
[1733734388915,0.215712,227.83,227.69,0.49709715]
[1733734389277,0.215712,227.83,227.62,39.48740279]
[1733734389278,2.1264,227.81,227.63,0.49739651]
[1733734389485,0.82329936,227.8,227.63,0.49739651]
[1733734390204,0.82329936,227.8,227.58,0.49781518]
[1733734390407,23.776884,227.79,227.58,0.49781518]
[1733734390711,0.82332292,227.78,227.58,33.76301797]
[1733734390912,0.82328425,227.8,227.58,0.49781518]
[1733734391111,0.82328425,227.8,227.58,33.76301797]
[1733734391283,2.1264,227.81,227.64,23.776884]
[1733734391473,2.1264,227.81,227.65,0.49741453]
[1733734392285,2.1264,227.81,227.67,20.0]
[1733734392492,2.1264,227.81,227.66,33.26520279]
[1733734392493,2.1264,227.81,227.69,20.0]
[1733734392686,2.1264,227.81,227.7,0.49722881]
[1733734393085,0.82318089,227.8,227.65,0.49750503]
[1733734393477,0.82318089,227.8,227.62,0.49768972]
[1733734394607,0.82318089,227.8,227.63,0.49770716]
[1733734395194,23.776884,227.79,227.63,0.49770716]
[1733734395388,20.0,227.76,227.63,0.49770716]
[1733734395715,20.0,227.76,227.64,0.49784732]
[1733734396080,0.82332263,227.78,227.64,0.49784732]
[1733734396282,0.82325845,227.8,227.64,0.49784732]
[1733734396484,23.776884,227.79,227.64,0.49784732]
[1733734396683,20.0,227.76,227.65,0.49784526]
[1733734396890,20.0,227.76,227.6,57.53977773]
[1733734397303,2.94967385,227.81,227.6,57.53977773]
[1733734397304,23.776884,227.8,227.6,57.53977773]
[1733734397489,0.82325054,227.79,227.61,33.26520279]
[1733734397707,2.1264,227.81,227.66,57.04208679]
[1733734397906,2.1264,227.81,227.67,0.49734493]
[1733734398109,0.82310691,227.8,227.67,0.49734493]
[1733734398693,2.1264,227.81,227.67,0.49734493]
[1733734398885,2.1264,227.81,227.68,20.0]
[1733734399092,2.1264,227.81,227.7,33.26520279]
[1733734399313,2.1264,227.81,227.71,0.49703599]
[1733734400926,1.6264,227.81,227.71,0.49703599]
[1733734402623,1.6264,227.81,227.66,0.49720379]
[1733734402624,20.0,227.77,227.66,0.49720379]
[1733734402817,20.215712,227.77,227.6,33.76290173]
[1733734403001,0.215712,227.77,227.66,33.26520279]
[1733734403204,0.215712,227.77,227.59,33.26520279]
[1733734403205,0.215712,227.77,227.68,33.26520279]
[1733734403416,0.215712,227.77,227.69,0.49703337]
[1733734403726,0.215712,227.77,227.7,33.26520279]
[1733734403937,0.215712,227.77,227.71,33.76209767]
[1733734404225,0.215712,227.77,227.72,20.0]
[1733734404427,0.215712,227.77,227.73,0.49714337]
[1733734405294,0.215712,227.77,227.69,23.776884]
[1733734405295,0.215712,227.77,227.74,0.49714571]